Cogmind - Beta 12 @@@ ROGUE MODE // 2023.06.15 @ 22:13:39 Player: skigear Result: Destroyed by D-53 Grenadier with Mini Grenade Launcher Performance ------------- Evolutions (0) 0 Regions Visited (2) 400 Robots Destroyed (21) 105 Value Destroyed (532) 532 Prototype IDs (2) 40 Alien Tech Used (0) 0 Bonus (0) 0 TOTAL SCORE: 1077 Bonus ------- None Cogmind --------- Core Integrity 0/250 Matter 280/300 Energy 248/250 System Corruption 0% Temperature Cool (0) Movement Rolling (125) Ox3 Location -10/Mines Parts ------- > --- POWER (1) -------- Ion Engine > --- PROPULSION (2) --- Light Treads Wheel > --- UTILITY (2) ------ Large Storage Unit Hacking Suite > --- WEAPON (2) ------- Heavy Particle Cannon Assault Cannon > --- INVENTORY (15) --- Ion Engine Ion Engine Light Treads Wheel Large Storage Unit Compact Battery (200) High-capacity Matter Pod (200) Signal Interpreter Beam Cannon Beam Cannon Beam Cannon Grenade Launcher Scythe Peak State ------------ > --- POWER ------------ Ion Engine > --- PROPULSION ------- Light Treads Wheel > --- UTILITY ---------- Large Storage Unit Hacking Suite > --- WEAPON ----------- Heavy Particle Cannon Assault Cannon > --- INVENTORY -------- Ion Engine Ion Engine Light Treads Light Treads Wheel Wheel Large Storage Unit Compact Battery High-capacity Matter Pod Beam Cannon Beam Cannon Beam Cannon Beam Cannon Grenade Launcher Scythe [Rating: 14] Favorites ----------- Power Ion Engine Engine Ion Engine Propulsion Light Treads Treads Light Treads Wheel Wheel Utility Large Storage Unit Storage Large Storage Unit Hackware Hacking Suite Weapon Light Assault Rifle Energy Cannon Beam Cannon Ballistic Gun Light Assault Rifle Ballistic Cannon Assault Cannon Launcher Grenade Launcher Impact Weapon Hammer Build | -11 -10 -10 ------- Run | Jun Mat Min Slots Evolved . | . . . Power . | . . . Propulsion . | . . . Utility . | . . . Weapon . | . . . Parts Attached 33 | 7 22 4 Power 3 | 1 2 . Engine 3 | 1 2 . Core . | . . . Reactor . | . . . Propulsion 8 | 3 3 2 Treads 3 | 1 1 1 Leg . | . . . Wheel 5 | 2 2 1 Hover . | . . . Flight . | . . . Utility 5 | 1 4 . Device . | . . . Storage 4 | 1 3 . Processor . | . . . Hackware 1 | . 1 . Protection . | . . . Artifact . | . . . Weapon 17 | 2 13 2 Energy Gun . | . . . Energy Cannon 8 | . 7 1 Ballistic Gun 6 | 2 4 . Ballistic Cannon 1 | . . 1 Launcher 1 | . 1 . Special Weapon . | . . . Impact Weapon 1 | . 1 . Slashing Weapon . | . . . Piercing Weapon . | . . . Special Melee Weapon . | . . . Unidentified Prototypes . | . . . Parts Lost 2 | . . 2 Power . | . . . Propulsion 2 | . . 2 Utility . | . . . Weapon . | . . . Highest Loss Streak 2 | . . 2 To Critical Strikes . | . . . Average Slot Usage (%) 96 | . 95 99 Engine 14 | . 14 14 Treads 13 | . 14 13 Wheel 13 | . 13 14 Storage 20 | . 22 14 Hackware 4 | . 2 14 Energy Cannon 11 | . 9 18 Ballistic Gun 13 | . 16 1 Ballistic Cannon 1 | . . 8 Naked Turns . | . . . Heaviest Build 36 | 12 33 36 Greatest Support 26 | 26 20 10 Greatest Overweight (x) 3 | 1 3 3 Average Overweight (x) 1 | . 1 2 Largest Inventory Capacity 15 | 8 15 15 Average Capacity 11 | 6 11 15 Most Carried 15 | 7 14 15 Average Carried 10 | 4 9 14 Final Capacity 15 | 8 15 15 Final Carried 14 | 3 14 13 Class Distribution -------------------- 100% | Mutant Dominant Class ---------------- Mutant | -10/Materials Mutant | -10/Mines Resources | -11 -10 -10 ----------- Run | Jun Mat Min Matter Collected 845 | 219 570 56 Remotely . | . . . Salvage Created 608 | . 577 31 Parts 47 | . 45 2 Haulers Intercepted 1 | . 1 . Recyclers Shooed . | . . . Parts Field Recycled . | . . . Retrieved Matter . | . . . Parts Self-Destructed . | . . . Prevented . | . . . Kills | -11 -10 -10 ------- Run | Jun Mat Min Combat Hostiles Destroyed 17 | . 16 1 Guns 4 | . 4 . Cannons 13 | . 12 1 Classes Destroyed 6 | . 6 . Worker 1 | . 1 . Hauler 1 | . 1 . Operator 1 | . 1 . Watcher 1 | . 1 . Swarmer 6 | . 6 . Grunt 11 | . 10 1 Best Kill Streak 6 | . 6 1 Combat Bots Only 5 | . 5 1 Max Kills in Single Turn 1 | . 1 1 Gunslinging . | . . . Exploded . | . . . Melee . | . . . Uniques/NPCs Destroyed . | . . . Combat | -11 -10 -10 -------- Run | Jun Mat Min Damage Taken 1076 | . 651 425 Core 258 | . 110 148 Absorbed by Shields . | . . . Regen/Repaired (Parts) 44 | . 44 . Core Remaining (%) 100 | 100 . . Volleys Fired 69 | . 65 4 Largest 2 | . 2 2 Hottest 135 | . 120 135 Shots Fired 133 | . 125 8 Gun 72 | . 72 . Cannon 59 | . 51 8 Launcher 2 | . 2 . Special . | . . . Kinetic 75 | . 72 3 Thermal 56 | . 51 5 Explosive 2 | . 2 . Electromagnetic . | . . . Robot Hit Streak 12 | . 12 2 Robot Miss Streak 4 | . 3 4 Penetration Max . | . . . Secondary Targets . | . . . Shots Hit Robots 67 | . 64 3 Core Hits 33 | . 32 1 Critical Kills . | . . . Critical Parts Destroyed . | . . . Critical Strikes . | . . . Melee Attacks 1 | . 1 . Impact 1 | . 1 . Slashing . | . . . Piercing . | . . . Sneak Attacks . | . . . Combat Hostiles . | . . . Follow-up Attacks . | . . . Damage Inflicted 1019 | . 944 75 Guns 307 | . 307 . Cannons 603 | . 528 75 Explosions 109 | . 109 . Melee . | . . . Ramming . | . . . Kinetic 357 | . 307 50 Thermal 662 | . 637 25 Explosive . | . . . Electromagnetic . | . . . Impact . | . . . Slashing . | . . . Piercing . | . . . Highest Corruption . | . . . Average Corruption . | . . . Corruption Purged . | . . . Corruption Blocked . | . . . Overload Shots . | . . . Overflow Damage 79 | . 79 . Projectiles . | . . . Explosions 79 | . 79 . Melee . | . . . Knockbacks 1 | . . 1 Impact . | . . . Kinetic 1 | . . 1 Secondary . | . . . Self-Inflicted Damage 24 | . 24 . Shots 1 | . 1 . Rammed . | . . . Targets Rammed . | . . . Kicked . | . . . Crushed . | . . . Highest Temperature 380 | . 380 191 Average Temperature 115 | . 119 84 Received Heat Transfer 303 | . 258 45 Effects 4 | . 4 . Interference 2 | . 2 . Matter Decay 1 | . 1 . Short Circuit 1 | . 1 . Siege Activations . | . . . Robots Corrupted . | . . . Combat Hostiles . | . . . Parts Fried . | . . . Impact Corruptions . | . . . Robots Melted . | . . . Combat Hostiles . | . . . Parts Melted 1 | . 1 . Heat Transferred 1197 | . 1160 37 Parts Sabotaged . | . . . Parts Stolen . | . . . Parts Stripped . | . . . Power Chain Reactions . | . . . Missiles Intercepted . | . . . Alert | -11 -10 -10 ------- Run | Jun Mat Min Peak Influence 382 | . 382 154 Initial 115 | . . 115 Average 169 | . 183 133 Maximum Alert Level 1 | . 1 . Low Security (%) 54 | 100 42 100 Level 1 45 | . 57 . Level 2 . | . . . Level 3 . | . . . Level 4 . | . . . Level 5 . | . . . High Security . | . . . Max Security . | . . . Squads Dispatched 5 | . 4 1 Investigation 3 | . 2 1 Extermination . | . . . Reinforcement 2 | . 2 . Assault . | . . . Garrison . | . . . Intercept . | . . . Searches Triggered . | . . . Construction Impeded . | . . . Haulers Reinforced . | . . . Active Scanning Responses . | . . . Cargo Convoy Interrupts . | . . . Stealth | -11 -10 -10 --------- Run | Jun Mat Min Distress Signals 1 | . 1 . Communications Jammed . | . . . Distress Signals . | . . . Times Spotted 36 | . 27 9 Peak Tracking Total 6 | . 6 6 Tactical Retreats 2 | . 1 1 Traps | -11 -10 -10 ------- Run | Jun Mat Min Traps Triggered 2 | . 2 . Indirectly . | . . . Trap Hack Attempts . | . . . Triggered . | . . . Disarmed . | . . . Reprogrammed . | . . . Reused . | . . . Traps Extracted . | . . . Installed . | . . . Triggered . | . . . Machines | -11 -10 -10 ---------- Run | Jun Mat Min Machines Disabled 5 | . 5 . Max in Single Turn 3 | . 3 . Machines Repaired . | . . . Machines Sabotaged . | . . . Overloaded Fab Kills . | . . . Hacking | -11 -10 -10 --------- Run | Jun Mat Min Machines Accessed 9 | . 8 1 Terminals 5 | . 5 . Fabricators . | . . . Repair Stations 1 | . 1 . Recycling Units 2 | . 2 . Scanalyzers . | . . . Garrison Access . | . . . Total Hacks 21 | . 20 1 Successful 12 | . 11 1 Failed 9 | . 9 . Catastrophic 2 | . 2 . Database Lockouts . | . . . Manual 10 | . 10 . Terminals 14 | . 14 . Fabricators . | . . . Repair Stations 2 | . 2 . Recycling Units 4 | . 4 . Scanalyzers . | . . . Garrison Access . | . . . Terminal Hacks 7 | . 6 1 Part Schematic 1 | . 1 . Prototype ID Bank 1 | . 1 . Open Door 1 | . . 1 Branch Access Points 1 | . 1 . Emergency Access Points 1 | . 1 . Recycling Unit Index 1 | . 1 . Alert Level 1 | . 1 . Fabricator Hacks . | . . . Repair Station Hacks 2 | . 2 . Scan Component 1 | . 1 . Repair 1 | . 1 . Recycling Unit Hacks 2 | . 2 . Retrieve Components 2 | . 2 . Scanalyzer . | . . . Garrison Access Hacks . | . . . Unauthorized Hacks 1 | . 1 . Terminals . | . . . Fabricators . | . . . Repair Stations . | . . . Recycling Units 1 | . 1 . Reject 1 | . 1 . Scanalyzers . | . . . Garrison Access . | . . . Data Cores Recovered 1 | . 1 . Used . | . . . Hacking Detections 6 | . 6 . Full Trace Events . | . . . Feedback Events . | . . . Feedback Blocked . | . . . Robot Schematics Acquired . | . . . Robots Built . | . . . Authchips . | . . . Time . | . . . Total Robot Build Rating . | . . . Part Schematics Acquired 1 | . 1 . Parts Built . | . . . Authchips . | . . . Time . | . . . Total Part Build Rating . | . . . Parts Repaired 1 | . 1 . Time 26 | . 26 . Parts Recycled . | . . . Recycled Matter . | . . . Retrieved Matter . | . . . Retrieved Components 10 | . 10 . Parts Scanalyzed . | . . . Part Schematics Acquired . | . . . Parts Damaged . | . . . Bothacking | -11 -10 -10 ------------ Run | Jun Mat Min Used RIF Installer . | . . . Robots Hacked . | . . . Non-combat . | . . . Combat . | . . . Robot Hacks Applied . | . . . Relay Couplers Released . | . . . Fabnet Peak Effective % . | . . . Robots Rewired . | . . . Allies Hacked . | . . . Hacks Repelled . | . . . Allies | -11 -10 -10 -------- Run | Jun Mat Min Total Allies . | . . . Largest Group . | . . . Highest-Rated Group . | . . . Highest-Rated Ally . | . . . Total Orders . | . . . Ally Attacks . | . . . Total Damage . | . . . Kills . | . . . Allies Corrupted . | . . . Allies Melted . | . . . Intel | -11 -10 -10 ------- Run | Jun Mat Min Robot Analysis Total . | . . . Derelict Logs Recovered 1 | . . 1 Drone Launches . | . . . Drone Recoveries . | . . . Exploration | -11 -10 -10 ------------- Run | Jun Mat Min Turns Passed 2105 | 50 1650 405 Spaces Moved 1267 | 48 920 299 Core 28 | 28 . . Treads 334 | 1 333 . Legs . | . . . Wheels 905 | 19 587 299 Hover . | . . . Flight . | . . . Fastest Speed 50 | 50 95 110 Average Speed 134 | 74 141 123 Slowest Speed 240 | 160 240 125 Overloaded Moves . | . . . Propulsion Burnouts . | . . . Robots Hopped . | . . . Cave-ins Triggered . | . . . Exploration Rate (%) 54 | 3 96 65 Regions Visited 2 Branch Regions 1 Pre-discovered Areas . | . . . Known Exits Taken 1 | . 1 . Unknown Exits Taken 1 | 1 . . Scrap Searched 2 | . . 2 Spaces Dug 5 | . 5 . Terrain Destroyed 43 | . 39 4 Melee . | . . . Projectile 4 | . . 4 AOE 39 | . 39 . Terrain Rammed . | . . . Walls Destroyed . | . . . Machines Disabled . | . . . Actions | -11 -10 -10 --------- Run | Jun Mat Min Total 1546 | 61 1156 329 Wait 138 | . 124 14 Move 1265 | 47 919 299 Hop . | . . . Pick Up 26 | 7 15 4 Fast Attach 4 | 2 1 1 Attach 8 | 4 2 2 Detach . | . . . Swap 21 | 1 19 1 Drop 14 | . 10 4 Fire 69 | . 65 4 Melee 1 | . 1 . Ram . | . . . Kick . | . . . Crush . | . . . Escape Stasis . | . . . Rewire . | . . . Trap . | . . . Miscellaneous . | . . . Route ------- -11/Junkyard -10/Materials (discovered 4 exits: *Mat x3 / *Min) -10/Mines (discovered 3 exits: *Mat x2 / [*Exi]) History --------- Turn | Location | Event 4 | -11/Junkyard | Discovered new exit (range 15) 51 | -11/Junkyard | Entered Materials 300 | -10/Materials | Build established: Mutant 372 | -10/Materials | Discovered new exit (range 3) 608 | -10/Materials | Discovered new exit (range 13) 1080 | -10/Materials | Repaired Beam Cannon 1224 | -10/Materials | Discovered new exit (range 3) 1447 | -10/Materials | Identified exit to Mines 1462 | -10/Materials | Discovered new exit (range 16) 1701 | -10/Materials | Entered Mines 1735 | -10/Mines | Met a Derelict shopkeep closing up shop 1798 | -10/Mines | Discovered new exit (range 7) 1879 | -10/Mines | Core integrity fell below 50% 1904 | -10/Mines | Identified exit to Materials 2031 | -10/Mines | Deemed a non-threat by the Exiles lab entrance 2031 | -10/Mines | Discovered new exit (range 5) 2069 | -10/Mines | Assembled infested the area 2074 | -10/Mines | Assisted by a Guerilla fighting off Assembled 2097 | -10/Mines | Core integrity fell below 20% 2106 | -10/Mines | Destroyed by D-53 Grenadier with Mini Grenade Launcher Last Messages --------------- coming from, and they're closing on this area, come on!" 02089_ SM-22B(h): "I'll hold them off! Go on ahead or try to find another way!" 02089_ D-53 Grenadier suffers critical hit (Destroy). 02089_ D-53 Grenadier knocked back. 02093_ SM-22B(h) destroyed. 02097_ Lgt. Treads destroyed. 02098_ The unstable cave ceiling collapses. 02098_ U-05 Engineer lays Concrete. 02099_ as-11318 destroyed. 02099_ as-08748 destroyed. 02100_ The unstable cave ceiling collapses. 02100_ U-05 Engineer lays Concrete. 02101_ as-53131 destroyed. 02101_ U-05 Engineer lays Concrete. 02102_ Wheel destroyed. 02102_ U-05 Engineer lays Concrete. 02104_ The unstable cave ceiling collapses. 02104_ U-05 Engineer lays Concrete. 02105_ U-05 Engineer builds a Wall. Map ----- +----------------------------------------------------+ | ??# #??????????????????????????? | | ??# #??????????????????????????? | | ??# #??????????????????????????? | | ??# #??????????????????????????? | | ??# #??????????????????????????? | | ??# #??????????????????????????? | | ??# #??????????????????????????? | | ??# #??????????????????????????? | | ??# #??????????????????????????? | | ??# #??????????????????????????? | | ??# #??????????????????????????? | | ??# #??????????????????????????? | | ??# #??#######??#??????????????? | | ### #### ## #??????????????? | | ? # ## #??????????????? | | ?# #??????????????? | | ?# #??????????????? | | ?# ad #??????????????? | | ?# #??????????????? | | ?? d #??????????????? | | ??# ##??????????????? | | ????# ##?????????????? | | ???## ##????????????? | | ???#< u #????????????? | | ???# # #????????????? | | ???# @ ##????????????? | | ???# ###?????????????? | | ???# # #???????????????? | | ???## # #######?????????? | | ????##=######! #?????????? | | ???## !]%!!%! ##### #?????????? | | ???# ##### #???# #?????????? | | ??## ##???# #???# #####?????? | | ?## ##???# #??## ##????? | | ?# #???# #??# #????? | | ?# #???# #### ###??? | | ?## < #???# %#??? | | ??# ##??# ###%#??? | | ??# ########## ###=#??? | | ??## ##?????# #?# #??? | | ???## #?????# #?# #??? | | ????## #????## ##?# #### | | ?????## ##???## ##??# | | ??????## ##????# #???# #### | | ???????# ##????# ##??## #??? | | ???????# ###??## ##??## ###? | | ???????# ##??####???# ## | | ???????# ##????????# | | ??????## ####?????## | | ??????# ##?????## | +----------------------------------------------------+ Best States ------------- Heat Dissipation 25 Energy Generation 10 Energy Capacity 250 Matter Stores 493 Matter Capacity 500 Sight Range 16 Terrain Scan Density 10 Evasion (%) 50 Recoil Reduction 1 Offensive Hacking 10 Item Schematics ----------------- Huge Storage Unit | -10/Materials | Hacked Robot Schematics ------------------ None Fabricated ------------ Nothing Alien Tech Used ----------------- None Achievements -------------- None Challenges ------------ None Game ------ Seed OmegaEnergySabre Manual? 0 Play Time 00:16:22 Cumulative 30.1 hours Start 2023.06.15 @ 18:11:01 End 2023.06.15 @ 22:13:39 Sessions 3 Manual Loads 0 Difficulty Rogue Special Mode None Game No. 20 Rogue 20 Adventurer 0 Explorer 0 Win Type - Total 0 Types 0/0/0/0/0/0/0/0/0 Lore% 30 Gallery% 32 Achievement% 32 Wizard Run 0 Options --------- ASCII 0 Keyboard 0 Movement Mouse Keybinds 0 Fullscreen 1 Font 24/Smallcaps Map View 76x50 Tactical HUD 1 Map Filters NONE Filters NONE Steam 1 RUN: d5b74973-6453-4403-a87c-6a1cdc9e0b1c